bitfinex/quotes_SOLUSD_20250601
["timestamp","ask_amount","ask_price","bid_price","bid_amount"]
[1748741107005,14.44167247,155.86,155.82,6.4176614]
[1748741108090,54.62167247,155.87,155.82,14.44167247]
[1748741108486,54.64167247,155.87,155.82,14.44167247]
[1748741108907,14.44167247,155.86,155.81,14.44167247]
[1748741110291,14.44167247,155.86,155.82,6.4176614]
[1748741111803,40.2,155.87,155.82,6.4176614]
[1748741112102,54.60167247,155.86,155.82,6.4176614]
[1748741112995,40.16,155.86,155.82,6.4176614]
[1748741113195,54.58167247,155.87,155.82,6.4176614]
[1748741115903,54.58167247,155.87,155.82,20.85933387]
[1748741116419,14.44167247,155.87,155.82,20.85933387]
[1748741116723,54.54167247,155.87,155.82,20.85933387]
[1748741117226,14.44167247,155.87,155.82,20.85933387]
[1748741117504,66.38262501,155.88,155.83,14.44167247]
[1748741118388,66.38262501,155.88,155.84,6.41683778]
[1748741119489,14.44167247,155.87,155.84,6.41683778]
[1748741121207,54.50167247,155.87,155.84,6.41683778]
[1748741121608,54.50167247,155.87,155.83,6.41724956]
[1748741124511,54.46167247,155.87,155.83,6.41724956]
[1748741125311,14.44167247,155.84,155.81,10.66]
[1748741126197,14.44167247,155.84,155.81,17.07792951]
[1748741126695,9.27629297,155.85,155.81,17.07792951]
[1748741127713,9.27629297,155.84,155.81,17.07792951]
[1748741127913,9.27629297,155.84,155.81,10.66]
[1748741128111,6.41655899,155.85,155.81,10.66]
[1748741128294,9.27629297,155.84,155.81,10.66]
[1748741128912,14.49520661,155.84,155.81,10.66]
[1748741129712,54.51520661,155.87,155.82,6.4176614]
[1748741130012,14.49520661,155.85,155.8,20.91369184]
[1748741130392,14.49520661,155.85,155.8,6.41848523]
[1748741131931,14.49520661,155.84,155.8,6.41848523]
[1748741133210,14.49520661,155.84,155.79,7.98622396]
[1748741133394,14.49520661,155.83,155.79,7.98622396]
[1748741133596,6.41643965,155.85,155.79,22.48143057]
[1748741133597,14.49520661,155.84,155.79,22.48143057]
[1748741133846,14.49520661,155.84,155.79,20.91403057]
[1748741137206,0.28432314,155.88,155.8,14.49520661]
[1748741137512,14.49520661,155.89,155.84,14.49520661]
[1748741137703,54.43520661,155.9,155.85,20.91163266]
[1748741138431,57.69010872,155.9,155.85,20.91163266]
[1748741138608,14.49520661,155.9,155.85,20.91163266]
[1748741139491,54.43520661,155.91,155.86,14.49520661]
[1748741139713,54.43520661,155.91,155.86,20.91091043]
[1748741140415,11.58936458,155.94,155.86,22.45573974]
[1748741140635,14.49520661,155.94,155.89,14.49520661]
[1748741140804,6.41198128,155.96,155.87,14.49520661]
[1748741140805,14.49520661,155.92,155.87,14.49520661]
[1748741141117,46.61630442,155.96,155.86,6.41570382]
[1748741141118,14.49520661,155.91,155.86,6.41570382]
[1748741141348,14.49520661,155.9,155.86,6.41570382]
[1748741142335,14.49520661,155.91,155.86,20.91091043]
[1748741143511,39.92,155.92,155.86,20.91091043]
[1748741143714,14.49520661,155.91,155.86,20.91091043]
[1748741147510,39.86,155.91,155.87,14.49520661]
[1748741148002,39.86,155.91,155.88,6.41519117]
[1748741155434,39.86,155.91,155.88,20.91039778]
[1748741155628,14.49520661,155.95,155.89,18.64964886]
[1748741155833,14.49520661,155.96,155.91,14.49520661]
[1748741156029,54.27520661,155.96,155.91,14.49520661]
[1748741156230,14.49520661,155.96,155.91,14.49520661]
[1748741156638,54.27520661,155.96,155.92,6.4135454]
[1748741157036,14.49520661,155.95,155.9,6.41436818]
[1748741157232,14.49520661,155.93,155.9,6.41436818]
[1748741157851,14.49520661,155.93,155.88,6.41519117]
[1748741158159,14.49520661,155.93,155.88,20.91039778]
[1748741159647,14.49520661,155.93,155.89,14.49520661]
[1748741159954,14.49520661,155.94,155.89,14.49520661]
[1748741160443,54.27520661,155.94,155.9,14.49520661]
[1748741160961,54.27520661,155.94,155.91,6.41395676]
[1748741161131,14.49520661,155.96,155.91,20.90916337]
[1748741161330,10.31342851,155.98,155.91,20.90916337]
[1748741161640,14.49520661,155.96,155.92,14.49520661]
[1748741162652,54.25520661,155.97,155.92,14.49520661]
[1748741163143,14.49520661,155.99,155.94,14.49520661]
[1748741163357,14.49520661,155.96,155.91,20.90916337]
[1748741164746,14.49520661,155.95,155.9,46.90943845]
[1748741165050,14.49520661,155.94,155.89,25.01520661]
[1748741165949,14.49520661,155.94,155.89,31.42990332]
[1748741166251,14.49520661,155.93,155.89,16.93469671]
[1748741169852,46.17231731,155.95,155.89,31.42990332]
[1748741170055,14.49520661,155.94,155.89,31.42990332]
[1748741172130,14.49520661,155.94,155.89,20.90990332]
[1748741172631,14.49520661,155.9,155.83,20.20414886]
[1748741172848,14.49520661,155.89,155.84,14.49520661]
[1748741174041,14.49520661,155.89,155.84,20.91185482]
[1748741175543,54.19520661,155.9,155.85,14.49520661]
[1748741176953,54.19520661,155.9,155.86,6.41601437]
[1748741180344,14.49520661,155.92,155.87,14.49520661]
[1748741180941,54.11520661,155.93,155.87,14.49520661]
[1748741181744,54.11520661,155.93,155.88,14.49520661]
[1748741181949,39.62,155.93,155.89,14.49520661]
[1748741182146,39.62,155.93,155.9,6.41436818]
[1748741182663,54.11520661,155.93,155.9,6.41436818]
[1748741183163,54.11520661,155.93,155.89,6.41463133]
[1748741185466,14.49520661,155.93,155.89,6.41463133]
[1748741185638,54.07520661,155.93,155.89,6.41463133]
[1748741187094,149.0,155.98,155.92,14.49520661]
[1748741187366,39.6,155.98,155.94,14.49520661]
[1748741187568,39.6,155.98,155.95,14.49520661]
[1748741187882,9.74055424,156.0,155.96,14.49520661]
[1748741188168,39.62,156.01,155.97,14.49520661]
[1748741188464,14.49520661,156.02,155.97,14.49520661]
[1748741188671,3.1486935,156.04,155.98,14.49520661]
[1748741188865,14.49520661,156.04,155.99,14.49520661]
[1748741189060,39.62,156.03,155.99,14.49520661]
[1748741189468,54.11520661,156.03,155.98,14.49520661]
[1748741189643,54.13520661,156.03,155.98,14.49520661]
[1748741190689,54.13520661,156.03,155.99,6.41066735]
[1748741190902,54.11520661,156.03,155.99,6.41066735]
[1748741192561,54.11520661,156.03,155.99,14.49520661]
[1748741194662,54.11520661,156.03,156.0,6.41025641]
[1748741196351,39.62,156.03,156.0,6.41025641]
[1748741199263,9.90060219,156.05,156.0,6.41025641]
[1748741199264,9.90060219,156.05,156.0,20.90546302]
[1748741199588,39.54,156.04,156.0,20.90546302]
[1748741200097,39.52,156.04,156.0,20.90546302]
[1748741201476,63.9158088,156.05,156.01,14.49520661]
[1748741202076,6.40648378,156.1,156.03,14.49520661]
[1748741202395,14.49520661,156.09,156.04,14.49520661]
[1748741202572,53.99520661,156.09,156.04,14.49520661]
[1748741203298,16.94762915,156.12,156.02,18.64964886]
[1748741203463,155.40496937,156.13,156.06,14.49520661]
[1748741203673,14.49520661,156.12,156.08,14.49520661]
[1748741203872,14.49520661,156.1,156.06,14.49520661]
[1748741204174,39.5,156.12,156.05,14.49520661]
[1748741204485,14.49520661,156.1,156.03,6.4090239]
[1748741204670,14.49520661,156.1,156.05,14.49520661]
[1748741204868,14.49520661,156.09,156.05,14.49520661]
[1748741206368,20.90183107,156.09,156.04,20.90359803]
[1748741208188,14.49520661,156.08,156.03,6.40895584]
[1748741208377,14.49520661,156.08,156.04,14.49520661]
[1748741208573,54.01520661,156.08,156.04,14.49520661]
[1748741209697,39.52,156.08,156.04,20.903684]
[1748741210071,0.14216157,156.12,156.04,20.903684]
[1748741210278,14.49520661,156.1,156.05,14.49520661]
[1748741211369,14.49520661,156.1,156.06,6.40779187]
[1748741212185,39.48,156.11,156.07,14.49520661]
[1748741212793,14.49520661,156.12,156.07,14.49520661]
[1748741213092,53.97520661,156.12,156.07,14.49520661]
[1748741213482,53.97520661,156.12,156.07,20.90224447]
[1748741213678,14.49520661,156.11,156.07,6.40703786]
[1748741216799,14.49520661,156.12,156.08,14.49520661]
[1748741217499,14.49520661,156.12,156.07,20.90224447]
[1748741217806,14.49520661,156.11,156.07,20.90224447]
[1748741219085,14.49520661,156.11,156.07,6.40703786]
[1748741221003,39.48,156.12,156.07,6.40703786]
[1748741221184,14.49520661,156.11,156.07,6.40703786]
[1748741224412,14.49520661,156.09,156.06,10.32]
[1748741224583,14.49520661,156.08,156.04,6.40861317]
[1748741228290,53.97520661,156.08,156.04,6.40861317]
[1748741230019,14.49520661,156.07,156.02,24.81520661]
[1748741230307,14.49520661,156.06,156.02,10.32]
[1748741230793,14.49520661,156.06,156.02,16.729318]
[1748741230992,14.49520661,156.06,156.02,31.22452461]
[1748741232802,14.49520661,156.06,156.02,16.729318]
[1748741237714,45.88705936,156.08,156.02,16.729318]
[1748741237715,14.49520661,156.07,156.02,16.729318]
[1748741238815,14.49520661,156.11,156.06,14.49520661]
[1748741239035,53.97520661,156.11,156.06,14.49520661]
[1748741239201,14.49520661,156.12,156.07,14.49520661]
[1748741239527,14.49520661,156.11,156.06,14.49520661]
[1748741240302,14.49520661,156.11,156.07,6.4073813]
[1748741240994,6.40496218,156.13,156.07,6.4073813]
[1748741241320,14.49520661,156.11,156.07,6.4073813]
[1748741247630,39.48,156.12,156.07,6.4073813]
[1748741247805,53.97520661,156.12,156.07,20.90258791]
[1748741248916,14.49520661,156.12,156.07,20.90258791]
[1748741249114,53.97520661,156.12,156.07,20.90258791]
[1748741251639,20.66828324,156.15,156.1,14.49520661]
[1748741251812,53.95520661,156.15,156.11,14.49520661]
[1748741252820,14.49520661,156.15,156.11,14.49520661]
[1748741253713,14.49520661,156.15,156.12,6.40532923]
[1748741254314,53.95520661,156.16,156.12,6.40532923]
[1748741254515,14.49520661,156.16,156.12,6.40532923]
[1748741254726,39.46,156.16,156.12,6.40532923]
[1748741254934,39.46,156.17,156.13,14.49520661]
[1748741255117,53.95520661,156.18,156.13,14.49520661]
[1748741256038,14.49520661,156.17,156.14,6.40450877]
[1748741256411,14.49520661,156.17,156.13,6.40477882]
[1748741257654,14.49520661,156.15,156.12,6.40526382]
[1748741259345,14.49520661,156.16,156.12,6.40526382]
[1748741260445,45.86295682,156.18,156.12,6.40526382]
[1748741260446,14.49520661,156.15,156.12,6.40526382]
[1748741262249,53.95520661,156.16,156.12,6.40526382]
[1748741262750,39.46,156.16,156.12,20.90047043]
[1748741262937,53.95520661,156.16,156.12,6.40526382]
[1748741263546,14.49520661,156.15,156.12,6.40526382]
[1748741263732,39.46,156.16,156.11,10.3]
[1748741263733,14.49520661,156.13,156.11,16.70558824]
[1748741266946,14.49520661,156.14,156.11,16.70558824]
[1748741267246,39.46,156.16,156.11,16.70558824]
[1748741267445,14.49520661,156.14,156.11,16.70558824]
[1748741268547,39.46,156.16,156.11,16.70558824]
[1748741268750,14.49520661,156.14,156.11,16.70558824]
[1748741271940,14.43845289,156.14,156.11,16.70558824]
[1748741277259,14.43845289,156.15,156.11,16.70558824]
[1748741277763,14.43845289,156.15,156.1,6.4061499]
[1748741277957,14.43845289,156.14,156.1,6.4061499]
[1748741278743,14.43845289,156.13,156.1,6.4061499]
[1748741280558,39.46,156.16,156.1,6.4061499]
[1748741280752,14.43845289,156.13,156.1,6.4061499]
[1748741281560,10.50562035,156.2,156.13,18.64964886]
[1748741281761,14.43845289,156.19,156.13,18.64964886]
[1748741281945,14.43845289,156.19,156.14,10.3]
[1748741282547,14.43845289,156.24,156.15,44.64964886]
[1748741282762,9.23210581,156.21,156.15,44.64964886]
[1748741283556,9.23210581,156.21,156.16,22.41290983]
[1748741283754,9.23210581,156.2,156.16,22.41290983]
[1748741284658,14.42731617,156.2,156.16,22.41290983]
[1748741284864,14.42731617,156.24,156.16,22.41290983]
[1748741285055,14.42731617,156.21,156.16,22.41290983]
[1748741286154,39.44,156.23,156.16,22.41290983]
[1748741286352,14.42731617,156.2,156.16,22.41290983]
[1748741288668,39.44,156.23,156.16,22.41290983]
[1748741288669,14.42731617,156.21,156.16,22.41290983]
[1748741290572,39.42,156.23,156.16,22.41290983]
[1748741290777,14.42731617,156.21,156.16,22.41290983]
[1748741291501,14.42731617,156.2,156.16,22.41290983]
[1748741292360,14.42731617,156.21,156.16,22.41290983]
[1748741294074,14.42731617,156.22,156.17,18.64964886]
[1748741295376,14.42731617,156.22,156.18,6.40286848]
[1748741295957,14.42731617,156.21,156.18,6.40286848]
[1748741297276,14.42731617,156.21,156.16,22.41290983]
[1748741300385,14.42731617,156.2,156.16,22.41290983]
[1748741302160,14.42731617,156.19,156.16,22.41290983]
[1748741302363,14.42731617,156.2,156.16,22.41290983]
[1748741302572,14.42731617,156.21,156.16,22.41290983]
[1748741303469,14.42731617,156.21,156.17,18.64964886]
[1748741305489,14.42731617,156.21,156.18,6.40286848]
[1748741305663,14.42731617,156.21,156.18,16.68286848]
[1748741308793,9.23215316,156.21,156.18,16.68286848]
[1748741310681,9.23215316,156.2,156.18,16.68286848]
[1748741317397,9.23215316,156.21,156.18,16.68286848]
[1748741318481,9.23215316,156.21,156.18,32.69003969]
[1748741318683,9.23215316,156.22,156.18,32.69003969]
[1748741318892,39.4,156.24,156.18,32.69003969]
[1748741319107,9.23215316,156.22,156.18,32.69003969]
[1748741324898,9.23215316,156.24,156.2,41.05681914]
[1748741325097,9.23215316,156.25,156.2,41.05681914]
[1748741325680,9.23215316,156.24,156.2,41.05681914]
[1748741331600,9.23215316,156.22,156.2,6.40204865]
[1748741331803,194.77892416,156.28,156.19,1.535]
[1748741331804,9.23215316,156.21,156.19,6.40236338]
[1748741332104,36.92861264,156.24,156.19,6.40236338]
[1748741332105,9.23215316,156.2,156.19,6.40236338]
[1748741335414,9.23215316,156.2,156.15,6.40409862]
[1748741335610,9.23215316,156.16,156.15,6.40409862]
[1748741336596,9.23215316,156.17,156.15,6.40409862]
[1748741337402,9.23215316,156.16,156.15,6.40409862]
[1748741338715,14.43399295,156.16,156.15,6.40409862]
[1748741342532,39.52,156.2,156.15,6.40409862]
[1748741342692,12.31059872,156.23,156.15,6.40409862]
[1748741342693,6.17359872,156.23,156.16,18.64964886]
[1748741342894,14.43399295,156.19,156.15,6.40409862]
[1748741343102,14.43399295,156.16,156.15,6.40409862]
[1748741343329,14.43399295,156.17,156.15,6.40409862]
[1748741343627,14.43399295,156.16,156.15,6.40409862]
[1748741343799,14.43399295,156.17,156.15,6.40409862]
[1748741345132,14.43399295,156.16,156.15,6.40409862]
[1748741351930,6.40178468,156.21,156.15,6.40409862]
[1748741352104,14.43399295,156.16,156.15,6.40409862]
[1748741354428,14.43399295,156.16,156.14,10.26]
[1748741354429,14.43399295,156.16,156.14,16.66446999]
[1748741354725,14.43399295,156.15,156.14,16.66446999]
[1748741354930,14.43399295,156.15,156.14,10.26]
[1748741355225,14.43399295,156.15,156.11,6.6407]
[1748741355226,14.43399295,156.15,156.11,6.4055923]
[1748741355433,14.43399295,156.12,156.1,10.28]
[1748741355633,14.43399295,156.11,156.1,10.28]
[1748741355810,14.43399295,156.11,156.1,16.6861499]
[1748741356210,14.43399295,156.11,156.1,10.28]
[1748741356607,14.43399295,156.11,156.08,6.40664497]
[1748741356808,14.43399295,156.09,156.08,6.40664497]
[1748741357333,14.43399295,156.09,156.07,1.5964]
[1748741357334,14.43399295,156.09,156.07,6.40736694]
[1748741357635,14.43399295,156.08,156.07,6.40736694]
[1748741357831,14.43399295,156.08,156.06,102.44]
[1748741357832,14.43399295,156.08,156.06,10.28]
[1748741358032,14.43399295,156.07,156.06,10.28]
[1748741358919,14.43399295,156.07,156.06,16.68779187]
[1748741359125,14.43399295,156.07,156.06,10.28]
[1748741359633,14.43399295,156.07,156.05,6.40805108]
[1748741359935,14.43399295,156.06,156.02,16.68909436]
[1748741360130,14.43399295,156.03,156.02,16.68909436]
[1748741360717,14.43399295,156.03,156.0,42.02473289]
[1748741360718,14.43399295,156.03,156.01,6.40978188]
[1748741361036,39.4,156.06,156.01,6.40978188]
[1748741361037,14.43399295,156.02,156.01,6.40978188]
[1748741362134,14.43399295,156.02,155.98,10.28]
[1748741362317,14.43399295,156.01,155.98,36.28]
[1748741363129,14.43399295,156.01,155.99,6.41066735]
[1748741364727,14.43399295,156.01,155.99,6.41066735]
[1748741372252,14.43399295,156.0,155.99,6.41066735]
[1748741372454,14.43399295,156.01,155.99,6.41066735]
[1748741373033,14.43399295,156.02,155.99,6.41066735]
[1748741373635,14.43399295,156.02,155.99,22.43733572]
[1748741373838,0.14216157,156.09,156.0,18.64964886]
[1748741374037,14.43399295,156.05,156.01,22.43445932]
[1748741374441,14.43399295,156.04,156.01,22.43445932]
[1748741377562,14.43399295,156.02,156.01,26.0]
[1748741378559,14.43399295,156.03,156.01,26.0]
[1748741379545,14.43399295,156.03,156.02,6.40943468]
[1748741383571,14.43399295,156.03,156.0,6.41025641]
[1748741383779,14.43399295,156.01,156.0,6.41025641]
[1748741384273,54.13831609,156.08,156.0,6.41025641]
[1748741384274,14.43399295,156.02,156.0,6.41025641]
[1748741384773,9.25487639,156.01,156.0,6.41025641]
[1748741386359,6.69202651,156.07,156.0,6.41025641]
[1748741386360,9.25487639,156.02,156.0,6.41025641]
[1748741386673,14.46011788,156.02,156.0,6.41025641]
[1748741387042,53.88011788,156.08,156.0,6.41025641]
[1748741387043,53.88011788,156.08,156.0,22.43589743]
[1748741387243,14.46011788,156.04,156.0,22.43589743]
[1748741387452,53.88011788,156.08,156.0,22.43589743]
[1748741387658,14.46011788,156.04,156.0,22.43589743]
[1748741388661,14.46011788,156.03,156.0,22.43589743]
[1748741390877,14.46011788,156.01,156.0,6.41025641]
[1748741392142,14.46011788,156.02,156.0,6.41025641]
[1748741395757,0.28432314,156.06,156.0,6.41025641]
[1748741396060,14.46011788,156.02,156.0,6.41025641]
[1748741396669,6.17359872,156.13,156.04,26.0]
[1748741396972,14.46011788,156.1,156.05,10.28]
[1748741398648,14.46011788,156.1,156.06,22.42727155]
[1748741400897,14.46011788,156.12,156.07,26.0]
[1748741403177,14.46011788,156.12,156.08,22.42439774]
[1748741406599,14.46011788,156.11,156.08,22.42439774]
[1748741413404,14.46011788,156.12,156.08,22.42439774]
[1748741414409,165.45359872,156.19,156.09,18.64964886]
[1748741414619,14.46011788,156.14,156.1,10.28]
[1748741415932,39.4,156.18,156.1,10.28]
[1748741416094,14.46011788,156.15,156.1,36.28]
[1748741416296,14.46011788,156.16,156.11,18.64964886]
[1748741416527,14.46011788,156.16,156.12,22.41865231]
[1748741420639,14.46011788,156.13,156.12,6.40532923]
[1748741421126,14.46011788,156.13,156.11,6.4056597]
[1748741421308,14.46011788,156.12,156.11,6.4056597]
[1748741423853,14.46011788,156.12,156.1,16.68610552]
[1748741424029,45.80411973,156.15,156.1,16.68610552]
[1748741424218,14.46011788,156.11,156.1,16.68610552]
[1748741426124,14.46011788,156.13,156.1,16.68610552]
[1748741426528,14.46011788,156.12,156.1,16.68610552]
[1748741427650,14.46011788,156.13,156.1,16.68610552]
[1748741428742,14.46011788,156.12,156.1,16.68610552]
[1748741429752,14.46011788,156.11,156.1,16.68610552]
[1748741430754,39.4,156.14,156.1,16.68610552]
[1748741430965,14.46011788,156.12,156.1,16.68610552]
[1748741437660,14.46011788,156.11,156.1,6.40610552]
[1748741446639,14.46011788,156.12,156.1,6.40610552]
[1748741447138,14.46011788,156.11,156.1,6.40610552]
[1748741448149,14.46011788,156.11,156.09,6.40656031]
[1748741450553,14.46011788,156.1,156.08,16.66690483]
[1748741452048,14.46011788,156.11,156.08,16.66690483]
[1748741452759,14.46011788,156.12,156.08,32.68433179]
[1748741452962,14.46011788,156.13,156.08,32.68433179]
[1748741454552,14.46011788,156.12,156.08,32.68433179]
[1748741460472,14.46011788,156.11,156.08,32.68433179]
[1748741461050,14.46011788,156.16,156.08,32.68433179]
[1748741461251,14.46011788,156.12,156.08,32.68433179]
[1748741464054,159.58378067,156.17,156.09,18.64964886]
[1748741464376,14.46011788,156.17,156.12,26.0]
[1748741464675,0.11112939,156.18,156.14,18.64964886]
[1748741465252,0.11112939,156.18,156.16,6.40368852]
[1748741469074,14.46011788,156.17,156.15,32.40402176]
[1748741469261,14.46011788,156.16,156.15,6.40402176]
[1748741470271,14.46011788,156.16,156.14,6.40450877]
[1748741472051,14.57124727,156.18,156.14,22.4157807]
[1748741472252,0.11112939,156.18,156.14,22.4157807]
[1748741475572,14.46011788,156.16,156.14,6.40450877]
[1748741475768,14.46011788,156.16,156.13,10.26]
[1748741475769,14.46011788,156.16,156.13,16.66477837]
[1748741476685,14.46011788,156.16,156.13,10.26]
[1748741476870,14.46011788,156.14,156.13,10.26]
[1748741478662,14.46011788,156.14,156.11,26.0]
[1748741478872,14.46011788,156.13,156.11,32.40569965]
[1748741479776,14.46011788,156.13,156.11,26.0]
[1748741482580,14.46011788,156.13,156.11,32.40556647]
[1748741482780,53.68349094,156.17,156.11,32.40556647]
[1748741483086,14.46011788,156.13,156.11,32.40556647]
[1748741483490,14.46011788,156.13,156.11,26.0]
[1748741484694,14.46011788,156.13,156.11,32.40566848]
[1748741485075,14.46011788,156.12,156.11,32.40566848]
[1748741485798,14.46011788,156.12,156.11,26.0]
[1748741486085,14.46011788,156.13,156.11,26.0]
[1748741486389,14.46011788,156.13,156.11,32.4057273]
[1748741486775,14.46011788,156.12,156.1,6.40607756]
[1748741487694,14.46011788,156.11,156.09,16.66645204]
[1748741489077,14.46011788,156.11,156.09,10.26]
[1748741490075,14.46011788,156.11,156.09,16.66644308]
[1748741490471,14.46011788,156.1,156.09,10.26]
[1748741493395,14.46011788,156.1,156.09,16.66656031]
[1748741493714,169.86393887,156.16,156.09,16.66656031]
[1748741494005,14.46011788,156.12,156.09,16.66656031]
[1748741494589,14.46011788,156.11,156.09,16.66656031]
[1748741495489,14.46011788,156.11,156.09,10.26]
[1748741495682,202.82011788,156.16,156.09,10.26]
[1748741495683,14.46011788,156.1,156.09,10.26]
[1748741495883,14.46011788,156.1,156.09,16.66656031]
[1748741496797,14.46011788,156.11,156.09,16.66656031]
[1748741500500,14.46011788,156.1,156.09,16.66656031]
[1748741500904,14.46011788,156.1,156.09,10.26]
[1748741501396,14.46011788,156.1,156.09,16.66656031]
[1748741501611,14.46011788,156.1,156.09,10.26]
[1748741502125,14.46011788,156.1,156.08,6.40692341]
[1748741502418,14.46011788,156.09,156.08,6.40692341]
[1748741503607,14.46011788,156.1,156.08,6.40692341]
[1748741505620,155.40399904,156.16,156.08,6.40692341]
[1748741505817,14.46011788,156.12,156.08,6.40692341]
[1748741506004,14.46011788,156.11,156.08,6.40692341]
[1748741506312,14.46011788,156.1,156.08,6.40692341]
[1748741507611,14.46011788,156.09,156.08,6.40692341]
[1748741507801,14.46011788,156.1,156.08,6.40692341]
[1748741509804,45.76423062,156.15,156.08,6.40692341]
[1748741510114,14.46011788,156.1,156.08,6.40692341]
[1748741510613,14.46011788,156.11,156.08,6.40692341]
[1748741510826,14.46011788,156.12,156.08,22.42435037]
[1748741511328,14.46011788,156.14,156.1,26.0]
[1748741511699,14.46011788,156.14,156.1,36.26]
[1748741512906,14.46011788,156.14,156.11,6.40573954]
[1748741514228,11.22998047,156.18,156.11,22.42008839]
[1748741514523,11.22998047,156.18,156.12,18.64964886]
[1748741514524,14.46011788,156.17,156.12,18.64964886]
[1748741515202,14.46011788,156.16,156.12,18.64964886]
[1748741515596,14.46011788,156.16,156.13,6.40491897]
[1748741517223,14.46011788,156.17,156.13,6.40491897]
[1748741518302,14.46011788,156.16,156.13,6.40491897]
[1748741518691,14.46011788,156.15,156.13,6.40491897]
[1748741518894,14.46011788,156.14,156.13,6.40491897]
[1748741519114,14.46011788,156.14,156.11,6.40573954]
[1748741519395,14.46011788,156.12,156.1,16.66600722]
[1748741519617,14.46011788,156.11,156.1,16.66600722]
[1748741520725,14.46011788,156.11,156.1,10.26]
[1748741522044,14.46011788,156.11,156.08,6.40690549]
[1748741522203,14.46011788,156.09,156.06,16.64766352]
[1748741522409,14.46011788,156.07,156.06,16.64766352]
[1748741522612,14.46011788,156.07,156.05,6.40806337]
[1748741522832,14.46011788,156.06,156.05,32.40806337]
[1748741523727,14.46011788,156.06,156.02,16.64930092]
[1748741523934,14.46011788,156.03,156.0,6.41025641]
[1748741524110,14.46011788,156.01,156.0,6.41025641]
[1748741525638,14.46011788,156.01,155.98,16.65100017]
[1748741525808,14.46011788,155.99,155.98,16.65100017]
[1748741527333,14.46011788,155.99,155.94,16.7447]
[1748741527547,165.64747077,156.07,155.96,18.64964886]
[1748741527711,14.46011788,156.01,155.96,44.64964886]
[1748741528536,14.46011788,156.01,155.97,6.41148938]
[1748741528735,14.46011788,156.02,155.97,22.44021285]
[1748741528938,14.46011788,156.03,155.98,18.64964886]
[1748741529514,14.46011788,156.03,155.99,10.24]
[1748741530137,14.46011788,156.03,156.0,6.41025641]
[1748741530321,14.46011788,156.02,156.0,6.41025641]
[1748741531541,149.0,156.07,156.0,7.92445641]
[1748741531726,14.46011788,156.06,156.01,18.64964886]
[1748741532039,14.46011788,156.05,156.01,18.64964886]
[1748741532719,14.46011788,156.05,156.02,6.40943468]
[1748741532921,14.46011788,156.06,156.02,22.43302139]
[1748741535230,14.46011788,156.05,156.02,22.43302139]
[1748741537317,14.46011788,156.04,156.02,22.43302139]
[1748741537522,14.46011788,156.05,156.02,22.43302139]
[1748741537821,14.46011788,156.05,156.01,18.64964886]
[1748741537822,14.46011788,156.03,156.01,32.40984552]
[1748741538455,14.46011788,156.02,156.01,32.40984552]
[1748741539750,14.46011788,156.03,156.01,32.40984552]
[1748741542433,14.46011788,156.04,156.01,32.40984552]
[1748741542939,14.46011788,156.03,156.01,32.40984552]
[1748741543542,14.46011788,156.02,156.01,32.40984552]
[1748741543743,14.46011788,156.02,155.99,16.6505909]
[1748741543939,14.46011788,156.0,155.99,16.6505909]
[1748741544443,14.46011788,156.0,155.97,26.0]
[1748741544444,14.46011788,156.0,155.97,6.41112598]
[1748741544634,14.46011788,155.98,155.97,6.41112598]
[1748741545751,14.46011788,155.98,155.96,6.41190048]
[1748741545933,14.46011788,155.97,155.96,6.41190048]
[1748741546328,14.46011788,155.98,155.96,6.41190048]
[1748741547041,14.46011788,155.99,155.96,6.41190048]
[1748741548075,14.46011788,155.98,155.96,6.41190048]
[1748741550273,14.46011788,155.97,155.96,6.41190048]
[1748741551166,14.46011788,155.97,155.94,26.0]
[1748741551349,14.46011788,155.95,155.94,26.0]
[1748741551941,14.46011788,155.95,155.94,32.41263587]
[1748741552163,14.46011788,155.95,155.94,6.41263587]
[1748741552375,14.46011788,155.95,155.92,1.5878]
[1748741552376,14.46011788,155.95,155.93,6.41313409]
[1748741552561,45.77069805,155.99,155.93,6.41313409]
[1748741552562,14.46011788,155.94,155.93,6.41313409]
[1748741552738,14.46011788,155.94,155.91,36.24]
[1748741552739,14.46011788,155.94,155.91,16.65366076]
[1748741552936,14.46011788,155.92,155.91,16.65366076]
[1748741555862,14.46011788,155.92,155.91,6.41366076]
[1748741558038,0.28432314,155.98,155.9,6.41436818]
[1748741558239,14.46011788,155.94,155.9,22.45028864]
[1748741559060,14.46011788,155.93,155.9,22.45028864]
[1748741562168,14.46011788,155.94,155.9,22.45028864]
[1748741563243,14.46011788,155.93,155.9,22.45028864]
[1748741563660,39.38,155.97,155.9,22.45028864]
[1748741563845,14.46011788,155.93,155.9,22.45028864]
[1748741564563,14.46011788,156.0,155.9,22.45028864]
[1748741564564,14.46011788,156.0,155.93,26.0]
[1748741564745,14.46011788,155.99,155.95,26.0]
[1748741564946,14.46011788,156.0,155.95,26.0]
[1748741565266,14.46011788,156.0,155.96,22.44165169]